fUST/lending_fUST_20240721
["ID","MTS","AMOUNT","RATE_DAILY","PERIOD"]
[332765598,1721508653477,-500.0,0.00014246,2]
[332765599,1721508653487,-2224.67,0.00014246,2]
[332765600,1721508653497,-500.0,0.00014246,2]
[332765601,1721508653507,-504.01346212,0.00014246,2]
[332765602,1721508653517,-506.27059481,0.00014246,2]
[332765603,1721508653527,-500.0,0.00014246,2]
[332765604,1721508653540,-500.0,0.00014246,2]
[332765605,1721508653550,-500.0,0.00014246,2]
[332765606,1721508653561,-3019.91,0.00014246,2]
[332765607,1721508653571,-500.0,0.00014246,2]
[332765608,1721508653582,-1114.92,0.00014246,2]
[332765609,1721508653593,-805.55,0.00014246,2]
[332765610,1721508653603,-503.42,0.00014246,2]
[332765611,1721508653613,-535.04149051,0.00014246,2]
[332765612,1721508653623,-500.0,0.00014246,2]
[332765613,1721508653632,-926.66,0.00014246,2]
[332765614,1721508653642,-500.0,0.00014246,2]
[332765615,1721508653652,-500.0,0.00014246,2]
[332765616,1721508653661,-500.0,0.00014246,2]
[332765617,1721508653671,-500.0,0.00014246,2]
[332765618,1721508653681,-750.01,0.00014246,2]
[332765619,1721508653690,-749.11,0.00014246,2]
[332765620,1721508653705,-977.73,0.00014246,2]
[332765621,1721508653718,-500.0,0.00014246,2]
[332765622,1721508653728,-1075.22,0.00014246,2]
[332765623,1721508653738,-500.0,0.00014246,2]
[332765624,1721508653751,-500.0,0.00014246,2]
[332765625,1721508653761,-625.8,0.00014246,2]
[332765626,1721508653770,-500.0,0.00014246,2]
[332765627,1721508653781,-509.41848931,0.00014246,2]
[332765628,1721508653792,-500.0,0.00014246,2]
[332765629,1721508653802,-500.0,0.00014246,2]
[332765630,1721508653812,-500.0,0.00014246,2]
[332765631,1721508653822,-500.0,0.00014246,2]
[332765632,1721508653832,-500.0,0.00014246,2]
[332765633,1721508653842,-500.0,0.00014246,2]
[332765634,1721508653851,-500.0,0.00014246,2]
[332765635,1721508653861,-592.03,0.00014246,2]
[332765636,1721508653870,-500.0,0.00014246,2]
[332765637,1721508653880,-3956.68,0.00014246,2]
[332765638,1721508653890,-500.0,0.00014246,2]
[332765639,1721508653900,-691.92,0.00014246,2]
[332765640,1721508653909,-500.0,0.00014246,2]
[332765641,1721508653919,-545.09,0.00014246,2]
[332765642,1721508653928,-1408.97,0.00014246,2]
[332765643,1721508653938,-1976.48,0.00014246,2]
[332765644,1721508653948,-671.35,0.00014246,2]
[332765645,1721508653957,-500.0,0.00014246,2]
[332765646,1721508653967,-500.0,0.00014246,2]
[332765647,1721508653976,-500.0,0.00014246,2]
[332765648,1721508653986,-500.0,0.00014246,2]
[332765649,1721508653995,-1775.97,0.00014246,2]
[332765650,1721508654004,-367.30137337,0.00014246,2]
[332765651,1721508654014,-569.81,0.00014246,2]
[332765652,1721508654024,-512.82091932,0.00014246,2]
[332765653,1721508654034,-500.0,0.00014246,2]
[332765654,1721508654044,-512.3,0.00014246,2]
[332765655,1721508654056,-1870.22,0.00014246,2]
[332765656,1721508654068,-564.04,0.00014246,2]
[332765657,1721508654083,-500.0,0.00014246,2]
[332765658,1721508654093,-1574.83,0.00014246,2]
[332765659,1721508654103,-500.0,0.00014246,2]
[332765660,1721508654112,-500.0,0.00014246,2]
[332765661,1721508654125,-532.72,0.00014246,2]
[332765662,1721508654135,-767.04,0.00014246,2]
[332765663,1721508654146,-500.0,0.00014246,2]
[332765664,1721508654156,-208.87,0.00014246,2]
[332765665,1721508654166,-500.0,0.00014246,2]
[332765666,1721508654176,-824.82,0.00014246,2]
[332765667,1721508654186,-500.0,0.00014246,2]
[332765668,1721508654196,-545.09,0.00014246,2]
[332765669,1721508654206,-500.0,0.00014246,2]
[332765670,1721508654215,-630.69,0.00014246,2]
[332765671,1721508654226,-500.0,0.00014246,2]
[332765672,1721508654235,-500.0,0.00014246,2]
[332765673,1721508654245,-1259.4,0.00014246,2]
[332765674,1721508654255,-811.3,0.00014246,2]
[332765675,1721508654265,-500.0,0.00014246,2]
[332765676,1721508654275,-859.66,0.00014246,2]
[332765677,1721508654285,-880.13,0.00014246,2]
[332765678,1721508654295,-606.47,0.00014246,2]
[332765679,1721508654307,-2551.02,0.00014246,2]
[332765680,1721508654325,-1271.9,0.00014246,2]
[332765681,1721508654335,-500.0,0.00014246,2]
[332765682,1721508654345,-1694.34,0.00014246,2]
[332765683,1721508654354,-500.0,0.00014246,2]
[332765684,1721508654364,-500.0,0.00014246,2]
[332765685,1721508654374,-1673.13,0.00014246,2]
[332765686,1721508654384,-500.0,0.00014246,2]
[332765687,1721508654394,-307.19556289,0.00014246,2]
[332765688,1721508654404,-500.0,0.00014246,2]
[332765689,1721508654414,-1967.34,0.00014246,2]
[332765690,1721508654424,-500.0,0.00014246,2]
[332765691,1721508654433,-500.0,0.00014246,2]
[332765692,1721508654443,-500.0,0.00014246,2]
[332765693,1721508654452,-500.0,0.00014246,2]
[332765694,1721508654462,-500.0,0.00014246,2]
[332765695,1721508654472,-500.0,0.00014246,2]
[332765696,1721508654482,-1296.63,0.00014246,2]
[332765697,1721508654491,-856.09,0.00014246,2]
[332765698,1721508654500,-1379.95,0.00014246,2]
[332765699,1721508654510,-1680.79,0.00014246,2]
[332765700,1721508654519,-539.29,0.00014246,2]
[332765701,1721508654529,-500.0,0.00014246,2]
[332765702,1721508654538,-534.53,0.00014246,2]
[332765703,1721508654548,-500.0,0.00014246,2]
[332765704,1721508654563,-2006.64,0.00014246,2]
[332765705,1721508654572,-500.0,0.00014246,2]
[332765706,1721508654581,-712.22,0.00014246,2]
[332765707,1721508654592,-500.0,0.00014246,2]
[332765708,1721508654601,-1929.81,0.00014246,2]
[332765709,1721508654611,-739.61,0.00014246,2]
[332765710,1721508654620,-831.82,0.00014246,2]
[332765711,1721508654629,-663.89,0.00014246,2]
[332765712,1721508654639,-778.32,0.00014246,2]
[332765713,1721508654648,-500.0,0.00014246,2]
[332765714,1721508654657,-500.0,0.00014246,2]
[332765715,1721508654667,-1019.27,0.00014246,2]
[332765716,1721508654677,-503.50562691,0.00014246,2]
[332765717,1721508654686,-882.84,0.00014246,2]
[332765718,1721508654696,-500.0,0.00014246,2]
[332765719,1721508654709,-958.78,0.00014246,2]
[332765720,1721508654718,-500.0,0.00014246,2]
[332765721,1721508654727,-500.0,0.00014246,2]
[332765722,1721508654737,-500.0,0.00014246,2]
[332765723,1721508654746,-500.0,0.00014246,2]
[332765724,1721508654756,-560.9,0.00014246,2]
[332765725,1721508654765,-415.26668233,0.00014246,2]
[332765726,1721508654775,-500.0,0.00014246,2]
[332765727,1721508654785,-500.0,0.00014246,2]
[332765728,1721508654797,-500.0,0.00014246,2]
[332765729,1721508654809,-660.14,0.00014246,2]
[332765730,1721508654819,-337.62634337,0.00014246,2]
[332765731,1721508654828,-512.08117975,0.00014246,2]
[332765732,1721508654838,-500.0,0.00014246,2]
[332765733,1721508654847,-500.0,0.00014246,2]
[332765734,1721508654856,-500.0,0.00014246,2]
[332765735,1721508654865,-545.40045561,0.00014246,2]
[332765736,1721508654875,-2154.81,0.00014246,2]
[332765737,1721508654885,-3543.88,0.00014246,2]
[332765738,1721508654895,-500.0,0.00014246,2]
[332765739,1721508654905,-500.0,0.00014246,2]
[332765740,1721508654915,-500.0,0.00014246,2]
[332765741,1721508654924,-500.0,0.00014246,2]
[332765742,1721508654934,-1454.6,0.00014246,2]
[332765743,1721508654944,-8312.4,0.00014246,2]
[332765744,1721508654953,-894.43,0.00014246,2]
[332765745,1721508654963,-500.0,0.00014246,2]
[332765746,1721508654973,-500.0,0.00014246,2]
[332765747,1721508654982,-1940.23,0.00014246,2]
[332765748,1721508654992,-717.4,0.00014246,2]
[332765749,1721508655001,-570.53,0.00014246,2]
[332765750,1721508655011,-500.0,0.00014246,2]
[332765751,1721508655021,-286.05459025,0.00014246,2]
[332765752,1721508655031,-4361.09,0.00014246,2]
[332765753,1721508655040,-500.0,0.00014246,2]
[332765754,1721508655049,-746.07,0.00014246,2]
[332765755,1721508655060,-500.0,0.00014246,2]
[332765756,1721508655069,-1134.6,0.00014246,2]
[332765757,1721508655079,-500.0,0.00014246,2]
[332765758,1721508655088,-500.0,0.00014246,2]
[332765759,1721508655098,-2310.99,0.00014246,2]
[332765760,1721508655107,-2713.02,0.00014246,2]
[332765761,1721508655116,-500.0,0.00014246,2]
[332765762,1721508655126,-3329.56,0.00014246,2]
[332765763,1721508655135,-698.5,0.00014246,2]
[332765764,1721508655145,-500.0,0.00014246,2]
[332765765,1721508655154,-1000.15,0.00014246,2]
[332765766,1721508655163,-500.0,0.00014246,2]
[332765767,1721508655173,-500.0,0.00014246,2]
[332765768,1721508655182,-500.0,0.00014246,2]
[332765769,1721508655191,-500.0,0.00014246,2]
[332765770,1721508655256,-500.0,0.00014246,2]
[332765771,1721508655265,-500.0,0.00014246,2]
[332765772,1721508655274,-3309.35,0.00014246,2]
[332765773,1721508655283,-500.0,0.00014246,2]
[332765774,1721508655293,-500.0,0.00014246,2]
[332765775,1721508655303,-2195.11,0.00014246,2]
[332765776,1721508655313,-500.0,0.00014246,2]
[332765777,1721508655323,-504.35,0.00014246,2]
[332765778,1721508655333,-511.02301535,0.00014246,2]
[332765779,1721508655342,-500.0,0.00014246,2]
[332765780,1721508655351,-500.0,0.00014246,2]
[332765781,1721508655360,-642.05,0.00014246,2]
[332765782,1721508655369,-598.68,0.00014246,2]
[332765783,1721508655378,-500.0,0.00014246,2]
[332765784,1721508655387,-1499.84,0.00014246,2]
[332765785,1721508655397,-500.0,0.00014246,2]
[332765786,1721508655407,-500.0,0.00014246,2]
[332765787,1721508655416,-1719.89,0.00014246,2]
[332765788,1721508655426,-500.0,0.00014246,2]
[332765789,1721508655437,-1108.68,0.00014246,2]
[332765790,1721508655446,-360.07193622,0.00014246,2]
[332765791,1721508655455,-2328.09,0.00014246,2]
[332765792,1721508655465,-151.0,0.00014246,2]
[332765793,1721508655474,-910.55,0.00014246,2]
[332765794,1721508655483,-521.4783236,0.00014246,2]
[332765795,1721508655493,-845.78,0.00014246,2]
[332765796,1721508655503,-500.0,0.00014246,2]
[332765797,1721508655512,-500.0,0.00014246,2]
[332765798,1721508655521,-612.71,0.00014246,2]
[332765799,1721508655531,-5035.15,0.00014246,2]
[332765800,1721508655540,-624.22,0.00014246,2]
[332765801,1721508655549,-500.0,0.00014246,2]
[332765802,1721508655562,-500.0,0.00014246,2]
[332765803,1721508655571,-539.26,0.00014246,2]
[332765804,1721508655580,-8731.33,0.00014246,2]
[332765805,1721508655590,-500.0,0.00014246,2]
[332765806,1721508655599,-500.0,0.00014246,2]
[332765807,1721508655608,-564.28,0.00014246,2]
[332765808,1721508655617,-500.0,0.00014246,2]
[332765809,1721508655627,-3507.24,0.00014246,2]
[332765810,1721508655636,-2691.83,0.00014246,2]
[332765811,1721508655646,-500.0,0.00014246,2]
[332765812,1721508655656,-500.0,0.00014246,2]
[332765813,1721508655666,-6952.2,0.00014246,2]
[332765814,1721508655675,-500.0,0.00014246,2]
[332765815,1721508655685,-500.0,0.00014246,2]
[332765816,1721508655694,-575.82,0.00014246,2]
[332765817,1721508655704,-1861.51,0.00014246,2]
[332765818,1721508655720,-2932.91,0.00014246,2]
[332765819,1721508655729,-500.0,0.00014246,2]
[332765820,1721508655740,-500.0,0.00014246,2]
[332765821,1721508655752,-453.62559309,0.00014246,2]
[332765822,1721508655761,-500.0,0.00014246,2]
[332765823,1721508655770,-500.0,0.00014246,2]
[332765824,1721508655779,-500.0,0.00014246,2]
[332765825,1721508655790,-500.0,0.00014246,2]
[332765826,1721508655800,-636.8,0.00014246,2]
[332765827,1721508655812,-2044.79,0.00014246,2]
[332765828,1721508655821,-353.74643827,0.00014246,2]
[332765829,1721508655831,-500.0,0.00014246,2]
[332765830,1721508655841,-500.0,0.00014246,2]
[332765831,1721508655851,-500.0,0.00014246,2]
[332765832,1721508655861,-4564.91,0.00014246,2]
[332765833,1721508655870,-902.99,0.00014246,2]
[332765834,1721508655880,-500.0,0.00014246,2]
[332765835,1721508655889,-1150.52,0.00014246,2]
[332765836,1721508655899,-977.51,0.00014246,2]
[332765837,1721508655908,-500.0,0.00014246,2]
[332765838,1721508655917,-573.56,0.00014246,2]
[332765839,1721508655927,-527.11963763,0.00014246,2]
[332765840,1721508655936,-596.72,0.00014246,2]
[332765841,1721508655945,-500.0,0.00014246,2]
[332765842,1721508655955,-500.0,0.00014246,2]
[332765843,1721508655964,-500.0,0.00014246,2]
[332765844,1721508655973,-500.0,0.00014246,2]
[332765845,1721508655982,-631.89,0.00014246,2]
[332765846,1721508655991,-500.0,0.00014246,2]
[332765847,1721508656001,-500.0,0.00014246,2]
[332765848,1721508656010,-4211.07,0.00014246,2]
[332765849,1721508656019,-10536.47,0.00014246,2]
[332765850,1721508656028,-500.0,0.00014246,2]
[332765851,1721508656037,-1363.05,0.00014246,2]
[332765852,1721508656047,-2383.85,0.00014246,2]
[332765853,1721508656056,-178.468555,0.00014246,2]
[332765854,1721508656066,-500.0,0.00014246,2]
[332765855,1721508656076,-987.34,0.00014246,2]
[332765856,1721508656086,-471.64085717,0.00014246,2]
[332765857,1721508656095,-10171.63,0.00014246,2]
[332765858,1721508656105,-178.468555,0.00014246,2]
[332765859,1721508656114,-555.64,0.00014246,2]
[332765860,1721508656124,-1403.7,0.00014246,2]
[332765861,1721508656133,-1883.98,0.00014246,2]
[332765862,1721508656142,-500.0,0.00014246,2]
[332765863,1721508656151,-1797.86,0.00014246,2]
[332765864,1721508656161,-255.62,0.00014246,2]
[332765865,1721508656170,-500.0,0.00014246,2]
[332765866,1721508656179,-2455.86,0.00014246,2]
[332765867,1721508656189,-2795.92,0.00014246,2]
[332765868,1721508656198,-500.0,0.00014246,2]
[332765869,1721508656207,-500.0,0.00014246,2]
[332765870,1721508656217,-500.0,0.00014246,2]
[332765871,1721508656226,-500.0,0.00014246,2]
[332765872,1721508656235,-1080.94,0.00014246,2]
[332765873,1721508656244,-500.0,0.00014246,2]
[332765874,1721508656253,-2876.63,0.00014246,2]
[332765875,1721508656263,-500.0,0.00014246,2]
[332765876,1721508656272,-1248.49,0.00014246,2]
[332765877,1721508656282,-683.23,0.00014246,2]
[332765878,1721508656291,-150.0,0.00014246,2]
[332765879,1721508656301,-381.21198987,0.00014246,2]
[332765880,1721508656314,-1153.84613,0.00014246,2]
[332765881,1721508656324,-1394.74,0.00014246,2]
[332765882,1721508656334,-1053.46,0.00014246,2]
[332765883,1721508656343,-2889.74,0.00014246,2]
[332765884,1721508656352,-1153.84613,0.00014246,2]
[332765885,1721508656362,-711.65,0.00014246,2]
[332765886,1721508656371,-8392.29,0.00014246,2]
[332765887,1721508656380,-2528.23,0.00014246,2]
[332765888,1721508656390,-1128.71,0.00014246,2]
[332765889,1721508656400,-500.0,0.00014246,2]
[332765890,1721508656409,-30602.79,0.00014246,2]
[332765891,1721508656419,-500.0,0.00014246,2]
[332765892,1721508656428,-500.0,0.00014246,2]
[332765893,1721508656437,-500.0,0.00014246,2]
[332765894,1721508656447,-826.33,0.00014246,2]
[332765895,1721508656456,-500.0,0.00014246,2]
[332765896,1721508656465,-500.0,0.00014246,2]
[332765897,1721508656474,-500.0,0.00014246,2]
[332765898,1721508656483,-500.0,0.00014246,2]
[332765899,1721508656493,-510.82,0.00014246,2]
[332765900,1721508656502,-1220.21,0.00014246,2]
[332765901,1721508656511,-500.0,0.00014246,2]
[332765902,1721508656520,-500.0,0.00014246,2]
[332765903,1721508656530,-2897.1,0.00014246,2]
[332765904,1721508656539,-813.26,0.00014246,2]
[332765905,1721508656549,-500.0,0.00014246,2]
[332765906,1721508656560,-1044.24,0.00014246,2]
[332765907,1721508656570,-500.0,0.00014246,2]
[332765908,1721508656580,-2115.68,0.00014246,2]
[332765909,1721508656590,-1522.47,0.00014246,2]
[332765910,1721508656599,-883.66,0.00014246,2]
[332765911,1721508656609,-500.0,0.00014246,2]
[332765912,1721508656618,-1268.18,0.00014246,2]
[332765913,1721508656627,-500.0,0.00014246,2]
[332765914,1721508656636,-590.44,0.00014246,2]
[332765915,1721508656645,-2275.6,0.00014246,2]
[332765916,1721508656655,-500.0,0.00014246,2]
[332765917,1721508656664,-13679.82,0.00014246,2]
[332765918,1721508656674,-2042.34,0.00014246,2]
[332765919,1721508656683,-2337.86,0.00014246,2]
[332765920,1721508656693,-2209.62,0.00014246,2]
[332765921,1721508656707,-500.0,0.00014246,2]
[332765922,1721508656717,-500.0,0.00014246,2]
[332765923,1721508656726,-741.83,0.00014246,2]
[332765924,1721508656736,-500.0,0.00014246,2]
[332765925,1721508656746,-500.0,0.00014246,2]
[332765926,1721508656756,-5656.32,0.00014246,2]
[332765927,1721508656765,-584.64,0.00014246,2]
[332765928,1721508656776,-1305.16,0.00014246,2]
[332765929,1721508656786,-500.0,0.00014246,2]
[332765930,1721508656795,-500.0,0.00014246,2]
[332765931,1721508656804,-500.0,0.00014246,2]
[332765932,1721508656815,-352.51834169,0.00014246,2]
[332765933,1721508656825,-500.0,0.00014246,2]
[332765934,1721508656834,-256.28354357,0.00014246,2]
[332765935,1721508656845,-500.0,0.00014246,2]
[332765936,1721508656855,-500.0,0.00014246,2]
[332765937,1721508656864,-500.0,0.00014246,2]
[332765938,1721508656874,-500.0,0.00014246,2]
[332765939,1721508656883,-500.0,0.00014246,2]
[332765940,1721508656893,-153.0,0.00014247,2]
[332765941,1721508656902,-153.0,0.00014247,2]
[332765942,1721508656911,-153.0,0.00014247,2]
[332765943,1721508656921,-651.259615,0.00014247,2]
[332765944,1721508656930,-164.567308,0.00014247,2]
[332765945,1721508656940,-1896.13994252,0.00014376,2]
[332765946,1721508656950,-500.0,0.0001452,2]
[332765947,1721508656960,-500.0,0.0001452,2]
[332765948,1721508656969,-500.0,0.0001452,2]
[332765949,1721508656979,-500.0,0.0001452,2]
[332765950,1721508656990,-500.0,0.0001452,2]
[332765951,1721508657000,-2066.42,0.0001452,2]
[332765952,1721508657010,-351.71501332,0.0001452,2]
[332765953,1721508657020,-607.91,0.0001452,2]
[332765954,1721508657032,-500.0,0.0001452,2]
[332765955,1721508657044,-500.0,0.0001452,2]
[332765956,1721508657054,-626.84,0.0001452,2]
[332765957,1721508657066,-1282.57,0.0001452,2]
[332765958,1721508657075,-500.0,0.0001452,2]
[332765959,1721508657087,-500.0,0.0001452,2]
[332765960,1721508657096,-500.0,0.0001452,2]
[332765961,1721508657105,-500.0,0.0001452,2]
[332765962,1721508657115,-500.0,0.0001452,2]
[332765963,1721508657124,-574.73,0.0001452,2]
[332765964,1721508657133,-561.72,0.0001452,2]
[332765965,1721508657142,-500.0,0.0001452,2]
[332765966,1721508657151,-500.0,0.0001452,2]
[332765967,1721508657161,-500.0,0.0001452,2]
[332765968,1721508657170,-500.0,0.0001452,2]
[332765969,1721508657179,-500.0,0.0001452,2]
[332765970,1721508657189,-500.0,0.0001452,2]
[332765971,1721508657198,-1064.01,0.0001452,2]
[332765972,1721508657208,-638.32,0.0001452,2]
[332765973,1721508657219,-500.0,0.0001452,2]
[332765974,1721508657228,-640.31,0.0001452,2]
[332765975,1721508657238,-500.0,0.0001452,2]
[332765976,1721508657247,-500.0,0.0001452,2]
[332765977,1721508657258,-500.0,0.0001452,2]
[332765978,1721508657267,-801.47,0.0001452,2]
[332765979,1721508657276,-500.0,0.0001452,2]
[332765980,1721508657285,-500.0,0.0001452,2]
[332765981,1721508657294,-500.0,0.0001452,2]
[332765982,1721508657303,-500.0,0.0001452,2]
[332765983,1721508657315,-500.0,0.0001452,2]
[332765984,1721508657324,-500.0,0.0001452,2]
[332765985,1721508657336,-500.0,0.0001452,2]
[332765986,1721508657347,-827.55,0.0001452,2]
[332765987,1721508657357,-500.0,0.0001452,2]
[332765988,1721508657366,-709.52,0.0001452,2]
[332765989,1721508657375,-901.43,0.0001452,2]
[332765990,1721508657384,-757.46,0.0001452,2]
[332765991,1721508657393,-2427.53,0.0001452,2]
[332765992,1721508657402,-500.0,0.0001452,2]
[332765993,1721508657411,-500.0,0.0001452,2]
[332765994,1721508657420,-500.0,0.0001452,2]
[332765995,1721508657429,-413.12462738,0.0001452,2]
[332765996,1721508657439,-500.0,0.0001452,2]
[332765997,1721508657448,-527.43,0.0001452,2]
[332765998,1721508657457,-500.0,0.0001452,2]
[332765999,1721508657467,-500.0,0.0001452,2]
[332766000,1721508657476,-500.0,0.0001452,2]
[332766001,1721508657486,-500.0,0.0001452,2]
[332766002,1721508657495,-815.02,0.0001452,2]
[332766003,1721508657504,-500.0,0.0001452,2]
[332766004,1721508657514,-1495.68,0.0001452,2]
[332766005,1721508657524,-500.0,0.0001452,2]
[332766006,1721508657538,-499.99859316,0.0001452,2]
[332766007,1721508657547,-500.0,0.0001452,2]
[332766008,1721508657557,-568.59,0.0001452,2]
[332766009,1721508657567,-2686.8,0.0001452,2]
[332766010,1721508657576,-500.0,0.0001452,2]
[332766011,1721508657586,-500.0,0.0001452,2]
[332766012,1721508657595,-2224.67,0.0001452,2]
[332766013,1721508657605,-500.0,0.0001452,2]
[332766014,1721508657614,-500.0,0.0001452,2]
[332766015,1721508657623,-500.0,0.0001452,2]
[332766016,1721508657633,-3019.91,0.0001452,2]
[332766017,1721508657642,-500.0,0.0001452,2]
[332766018,1721508657653,-1114.92,0.0001452,2]
[332766019,1721508657663,-805.55,0.0001452,2]
[332766020,1721508657673,-503.42,0.0001452,2]
[332766021,1721508657683,-520.8514786,0.0001452,2]
[332766022,1721508657693,-926.66,0.0001452,2]
[332766023,1721508657704,-582.80298837,0.0001452,2]
[332766024,1721508657715,-500.0,0.0001452,2]
[332766025,1721508657725,-500.0,0.0001452,2]
[332766026,1721508657734,-750.01,0.0001452,2]
[332766027,1721508657744,-749.11,0.0001452,2]
[332766028,1721508657754,-977.73,0.0001452,2]
[332766029,1721508657764,-500.0,0.0001452,2]
[332766030,1721508657774,-1075.22,0.0001452,2]
[332766031,1721508657783,-540.92680872,0.0001452,2]
[332766032,1721508657796,-519.99834268,0.0001452,2]
[332766033,1721508657807,-625.8,0.0001452,2]
[332766034,1721508657818,-500.0,0.0001452,2]
[332766035,1721508657827,-237.48528334,0.0001452,2]
[332766036,1721508657837,-500.0,0.0001452,2]
[332766037,1721508657847,-500.0,0.0001452,2]
[332766038,1721508657858,-500.0,0.0001452,2]
[332766039,1721508657869,-500.0,0.0001452,2]
[332766040,1721508657879,-500.0,0.0001452,2]
[332766041,1721508657888,-500.0,0.0001452,2]
[332766042,1721508657899,-592.03,0.0001452,2]
[332766043,1721508657908,-500.0,0.0001452,2]
[332766044,1721508657918,-3956.68,0.0001452,2]
[332766045,1721508657929,-500.0,0.0001452,2]
[332766046,1721508657939,-691.92,0.0001452,2]
[332766047,1721508657949,-500.0,0.0001452,2]
[332766048,1721508657959,-545.09,0.0001452,2]
[332766049,1721508657968,-1408.97,0.0001452,2]
[332766050,1721508657978,-1976.48,0.0001452,2]
[332766051,1721508657989,-671.35,0.0001452,2]
[332766052,1721508657999,-500.0,0.0001452,2]
[332766053,1721508658008,-500.0,0.0001452,2]
[332766054,1721508658018,-500.0,0.0001452,2]
[332766055,1721508658028,-500.0,0.0001452,2]
[332766056,1721508658039,-1775.97,0.0001452,2]
[332766057,1721508658048,-569.81,0.0001452,2]
[332766058,1721508658059,-500.0,0.0001452,2]
[332766059,1721508658070,-512.3,0.0001452,2]
[332766060,1721508658080,-1870.22,0.0001452,2]
[332766061,1721508658089,-564.04,0.0001452,2]
[332766062,1721508658099,-500.0,0.0001452,2]
[332766063,1721508658109,-1574.83,0.0001452,2]
[332766064,1721508658118,-500.0,0.0001452,2]
[332766065,1721508658127,-500.0,0.0001452,2]
[332766066,1721508658137,-532.72,0.0001452,2]
[332766067,1721508658147,-767.04,0.0001452,2]
[332766068,1721508658156,-500.0,0.0001452,2]
[332766069,1721508658166,-500.0,0.0001452,2]
[332766070,1721508658176,-824.82,0.0001452,2]
[332766071,1721508658186,-500.0,0.0001452,2]
[332766072,1721508658196,-545.09,0.0001452,2]
[332766073,1721508658206,-500.0,0.0001452,2]
[332766074,1721508658215,-630.69,0.0001452,2]
[332766075,1721508658226,-500.0,0.0001452,2]
[332766076,1721508658236,-500.0,0.0001452,2]
[332766077,1721508658246,-1259.4,0.0001452,2]
[332766078,1721508658255,-811.3,0.0001452,2]
[332766079,1721508658265,-315.09393361,0.0001452,2]
[332766080,1721508658275,-859.66,0.0001452,2]
[332766081,1721508658285,-880.13,0.0001452,2]
[332766082,1721508658294,-1845.627948,0.0001452,2]
[332766083,1721508658304,-606.47,0.0001452,2]
[332766084,1721508658314,-2551.02,0.0001452,2]
[332766085,1721508658325,-1845.627948,0.0001452,2]
[332766086,1721508658335,-1271.9,0.0001452,2]
[332766087,1721508658344,-500.0,0.0001452,2]
[332766088,1721508658355,-1694.34,0.0001452,2]
[332766089,1721508658365,-500.0,0.0001452,2]
[332766090,1721508658375,-1673.13,0.0001452,2]
[332766091,1721508658385,-500.0,0.0001452,2]
[332766092,1721508658395,-1967.34,0.0001452,2]
[332766093,1721508658404,-500.0,0.0001452,2]
[332766094,1721508658414,-371.21872969,0.0001452,2]
[332766095,1721508658424,-500.0,0.0001452,2]
[332766096,1721508658433,-500.0,0.0001452,2]
[332766097,1721508658443,-500.0,0.0001452,2]